[Event "FIDE WSTC-50-65 2022"]
[Site "Acqui Terme"]
[Date "2022.06.24"]
[Round "5.16"]
[White "Kierzek, Matthias"]
[Black "Pitzl, Konstantinos"]
[Result "1-0"]
[ECO "B08"]
[WhiteElo "2224"]
[BlackElo "2030"]
[Annotator "TA"]
[PlyCount "109"]
[EventDate "2022.06.20"]
[EventType "team-tourn"]
[EventCountry "ITA"]
[SourceTitle "playchess.com"]
[Source "ChessBase"]
[SourceQuality "1"]
[TimeControl "40/5400+30:1800+30"]

{[%evp 15,109,40,20,28,43,14,60,42,71,72,72,71,52,38,115,104,105,112,130,137,170,152,236,202,193,184,410,173,207,218,223,225,228,217,214,195,281,289,266,174,233,200,208,208,241,235,242,202,201,200,198,194,193,164,167,134,327,305,322,309,324,320,506,542,539,533,504,515,687,691,687,550,491,0,672,656,708,704,944,905,684,868,721,681,29977,29978,29977,29979,29980,29981,29980,29980,29982,29983,29982,29982]} 1. d4 {[%emt 0:01:00]} d6 {[%emt 0:01:00]} 2. e4 {[%emt 0:00:00]} Nf6 {[%emt 0:00:00]} 3. Nc3 {[%emt 0:00:00]} g6 {[%emt 0:00:00]} 4. Be3 {[%emt 0:00:30]} Bg7 {[%emt 0:00:30]} 5. Qd2 {[%emt 0:00:30]} c6 {[%emt 0:00:30]} 6. Nf3 {[%emt 0:00:30]} Qa5 {[%emt 0:05:30]} 7. h3 {[%emt 0:11:30]} O-O {[%emt 0:02:30]} 8. Bd3 {[%emt 0:00:30]} Nbd7 {[%emt 0:00:00]} 9. O-O {[%emt 0:03:30][%cal Oc3d5] B08: Pirc Defence: Classical System.} Qc7 {[%emt 0:01:00]} 10. Ne2 {[%emt 0:06:30]} b5 {[%emt 0:15:30] [#]} (10... e5 $11) 11. c3 $146 {[%emt 0:03:30] White is slightly better.} ({Predecessor:} 11. Bh6 c5 12. Bxg7 Kxg7 13. c3 e5 14. Ng3 Rb8 15. Qg5 Ng8 16. dxe5 Nxe5 17. Nxe5 dxe5 {½-½ (41) Bunyatov,R (2254)-Froewis,G (2452) Krakow 2016}) 11... Bb7 {[%emt 0:00:30]} 12. Ng3 {[%emt 0:08:30]} (12. Bh6 {is more complex.} c5 13. Ng3 a6 14. Bxg7 Kxg7 15. Rfe1) 12... e5 {[%emt 0:05:30]} 13. Rfe1 {[%emt 0:06:30]} (13. Bh6 {looks sharper.} a6 14. Rfe1 c5 15. Bxg7 Kxg7 16. a4) 13... Rfe8 {[%emt 0:17:30]} 14. Rac1 {[%emt 0:01:30]} c5 {[%emt 0:12:30] White leaves nothing to chance now.} (14... Nb6 $14) 15. dxe5 $16 {[%emt 0:11:30]} dxe5 {[%emt 0:00:30]} 16. Bxb5 {[%emt 0:00:30]} Rad8 {[%emt 0:00:30]} 17. Qc2 {[%emt 0:03:30] White is more active.} Qa5 {[%emt 0:01:30]} 18. Bf1 {[%emt 0:06:30]} Qxa2 {[%emt 0:04:30]} (18... Qc7 $16 19. b3 Ra8) 19. Ra1 {[%emt 0:00:30]} Qe6 {[%emt 0:00:30]} 20. Rxa7 {[%emt 0:00:30]} Qc6 {[%emt 0:00:00] [#]} (20... Rb8 {was called for.} 21. Rea1 Rf8) 21. Nd2 {[%emt 0:05:30]} (21. Qb3 $142) 21... Qb6 {[%emt 0:05:00]} 22. Rea1 {[%emt 0:00:30] And now Nc4 would win.} Ra8 {[%emt 0:00:30]} 23. Rxa8 {[%emt 0:02:30]} Rxa8 {[%emt 0:00:00]} 24. Rxa8+ {[%emt 0:00:30]} Bxa8 {[%emt 0:00:00]} 25. Bc4 {[%emt 0:00:30]} Qb8 {[%emt 0:01:30]} (25... Bc6 $142 26. b4 Qb8) 26. Qa4 $18 {[%emt 0:02:30]} Qb7 {[%emt 0:06:30]} 27. Qb5 {[%emt 0:06:00]} h5 {[%emt 0:00:30]} (27... Qb6 $142 28. Qa4 Qb7) 28. Qxb7 {[%emt 0:01:24]} Bxb7 {[%emt 0:00:30]} 29. f3 {[%emt 0:00:13]} Bf8 {[%emt 0:00:00] [#]} 30. Nb3 $1 {[%emt 0:01:53]} Nb6 {[%emt 0:01:52]} 31. Bb5 {[%emt 0:00:45]} Nfd7 {[%emt 0:00:52]} 32. Nf1 {[%emt 0:02:11]} f5 {[%emt 0:00:05]} 33. Nfd2 {[%emt 0:00:40]} Kg7 {[%emt 0:02:54]} 34. exf5 {[%emt 0:04:12]} gxf5 {[%emt 0:00:09]} 35. Nc4 {[%emt 0:00:42]} Bd5 $2 {[%emt 0:00:30]} (35... Nxc4 $16 36. Bxc4 Kf6) 36. Nxb6 {[%emt 0:00:27]} Nxb6 {[%emt 0:00:08]} 37. Bxc5 {[%emt 0:01:16]} Bxc5+ {[%emt 0:03:27]} 38. Nxc5 {[%emt 0:00:06]} Bc4 {[%emt 0:00:56]} (38... Bf7 $142 39. Nd7 Nxd7) 39. Bxc4 {[%emt 0:01:34]} Nxc4 {[%emt 0:00:09][%mdl 4096] Endgame KN-KN} 40. b4 {[%emt 0:00:00]} Kf7 {[%emt 0:00:00]} 41. Kf2 {[%emt 0:03:07]} h4 {[%emt 0:01:28]} 42. Ke2 {[%emt 0:02:30]} Ke7 {[%emt 0:03:30]} 43. Kd3 {[%emt 0:01:30]} Nb2+ {[%emt 0:00:30]} 44. Ke2 {[%emt 0:02:30]} Nc4 $1 {[%emt 0:00:00]} 45. Nb3 {[%emt 0:00:30]} Ke6 {[%emt 0:01:00]} 46. Na5 {[%emt 0:01:30]} Nb2 {[%emt 0:07:30]} 47. c4 {[%emt 0:02:30]} Na4 {[%emt 0:00:30]} 48. Kd3 {[%emt 0:00:30]} Nb6 {[%emt 0:01:30]} 49. Nb3 {[%emt 0:01:30]} Nd7 {[%emt 0:07:30]} 50. Nc5+ {[%emt 0:13:00] White mates.} Nxc5+ {[%emt 0:00:30]} 51. bxc5 {[%emt 0:00:02]} Kd7 {[%emt 0:00:00]} 52. g3 {[%emt 0:00:10]} hxg3 {[%emt 0:00:00]} 53. Ke2 {[%emt 0:00:06]} e4 {[%emt 0:00:30]} 54. fxe4 {[%emt 0:00:18]} fxe4 {[%emt 0:00:30]} 55. h4 {[%emt 0:00:29] Weighted Error Value: White=0.32/Black=0.41} 1-0

[Event "FIDE WSTC-50-65 2022"]
[Site "Acqui Terme"]
[Date "2022.06.26"]
[Round "6.1"]
[White "Adams, Michael"]
[Black "David, Alberto"]
[Result "1-0"]
[ECO "B80"]
[WhiteElo "2698"]
[BlackElo "2520"]
[Annotator "TA"]
[PlyCount "133"]
[EventDate "2022.06.20"]
[EventType "team-tourn"]
[EventCountry "ITA"]
[SourceTitle "playchess.com"]
[Source "ChessBase"]
[SourceQuality "1"]
[TimeControl "40/5400+30:1800+30"]

{[%evp 17,133,50,29,16,39,14,26,35,18,25,29,17,35,30,42,34,39,46,58,41,53,54,56,47,49,9,9,8,15,13,13,14,17,16,14,16,12,12,16,13,23,23,25,6,6,6,6,6,27,6,33,35,44,3,33,0,31,9,84,58,116,127,112,112,127,123,125,126,131,114,168,127,111,91,76,91,91,66,67,0,77,77,80,81,354,362,367,362,336,329,369,368,368,368,367,362,351,336,331,327,303,267,567,562,656,700,1033,1211,3088,2326,2888,1610,1816,1787,1771,1702,1310,1147]} 1. e4 {[%emt 0:01:00]} c5 {[%emt 0:01:00]} 2. Nf3 {[%emt 0:00:00]} e6 {[%emt 0:00:00]} 3. d4 {[%emt 0:00:00]} cxd4 {[%emt 0:00:00]} 4. Nxd4 {[%emt 0:00:00]} Nf6 {[%emt 0:00:00]} 5. Nc3 {[%emt 0:00:00]} d6 {[%emt 0:00:00]} 6. g3 {[%emt 0:02:30]} Nc6 {[%emt 0:01:30]} 7. Bg2 {[%emt 0:00:00]} Bd7 {[%emt 0:01:30]} 8. O-O {[%emt 0:03:00]} a6 {[%emt 0:04:30]} 9. Nxc6 {[%emt 0:03:30] 9.b3 is setting a new trend.} Bxc6 {[%emt 0:00:30]} 10. Bf4 {[%emt 0:01:30][%cal Bc1f4,Bf4e3,Be3b6][%mdl 32] [#] B80: Sicilian Scheveningen: 6 g3 and 6 Be3, including English Attack.} Rc8 $146 {[%emt 0:11:30] [#]} ({Predecessor:} 10... Qc7 11. Qd2 Be7 12. Rfd1 Rd8 13. a4 O-O 14. a5 Rfe8 15. h3 Qc8 16. Be3 d5 17. Bb6 d4 {½-½ (47) Istratescu,A (2650)-Laznicka,V (2701) Rogaska Slatina 2011}) 11. Nd5 $1 {[%emt 0:14:30][%cal Of1e1]} Bxd5 {[%emt 0:09:30]} (11... h5 12. Re1) 12. exd5 {[%emt 0:00:30] White has an edge.} e5 {[%emt 0:00:30]} 13. Be3 {[%emt 0:00:30][%cal Oc2c4]} Be7 {[%emt 0:01:30]} 14. c4 {[%emt 0:06:30]} O-O {[%emt 0:10:30]} 15. Qb3 {[%emt 0:04:30]} Ng4 {[%emt 0:16:30]} 16. Bb6 {[%emt 0:05:30]} Qd7 {[%emt 0:00:00]} 17. Rac1 {[%emt 0:05:30]} Kh8 {[%emt 0:03:00]} 18. Bh3 {[%emt 0:08:30] This bishop pair is nice.} f5 {[%emt 0:04:30]} 19. Bxg4 {[%emt 0:01:30]} fxg4 {[%emt 0:00:30]} 20. Rc3 {[%emt 0:00:00] Inhibits Rf3.} Bd8 {[%emt 0:05:30]} 21. c5 {[%emt 0:07:00]} (21. Be3 {is more complex.} h6 22. Rfc1 Bg5 23. Bxg5 hxg5 24. c5) 21... Bxb6 {[%emt 0:01:30]} 22. Qxb6 {[%emt 0:03:30]} dxc5 {[%emt 0:00:30]} 23. Rxc5 {[%emt 0:00:30]} Rxc5 {[%emt 0:01:30]} 24. Qxc5 $11 {[%emt 0:00:30][%cal Rc5f8][%mdl 4096] Endgame KQR-KQR} Rc8 {[%emt 0:00:30]} 25. Qb4 {[%emt 0:00:30]} Qxd5 {[%emt 0:00:30]} 26. Qxg4 {[%emt 0:00:00]} Rd8 {[%emt 0:05:30]} 27. Rc1 {[%emt 0:05:00]} h6 {[%emt 0:01:38]} 28. b3 {[%emt 0:05:30]} (28. Rc7 {keeps more tension.} Qd1+ 29. Qxd1 Rxd1+ 30. Kg2) 28... e4 {[%emt 0:13:58]} 29. Re1 {[%emt 0:08:32]} Re8 $1 {[%emt 0:00:36]} 30. Qe2 {[%emt 0:04:08]} e3 {[%emt 0:02:56]} 31. fxe3 {[%emt 0:01:05]} Qe4 {[%emt 0:00:18]} 32. Qg2 {[%emt 0:01:32]} Qb4 {[%emt 0:00:40]} 33. Qf2 {[%emt 0:03:59]} Rf8 {[%emt 0:00:48]} 34. Qe2 {[%emt 0:00:04]} Qe4 {[%emt 0:00:13]} 35. Rd1 {[%emt 0:00:59]} (35. Qc4 $5 {[%cal Rc4e4]} Qg6 36. Rd1 $14 (36. Rf1 Re8 $14)) 35... Rf3 {[%emt 0:01:33]} 36. Re1 {[%emt 0:00:50]} Rf5 {[%emt 0:00:43]} 37. Rc1 {[%emt 0:00:43]} Rf3 {[%emt 0:01:57]} (37... b5 $11) 38. Rc3 {[%emt 0:01:30]} Kh7 {[%emt 0:01:06]} (38... Rf8 $14) 39. Qd3 $16 {[%emt 0:00:37]} Qxd3 {[%emt 0:00:24]} 40. Rxd3 {[%emt 0:00:00] KR-KR} Rf6 {[%emt 0:00:00]} 41. Kg2 {[%emt 0:03:31]} Rc6 {[%emt 0:18:41]} 42. Rd2 {[%emt 0:02:30] Inhibits Rc2.} Kg6 {[%emt 0:03:02]} 43. Kf3 {[%emt 0:00:30]} Kf6 {[%emt 0:04:26]} (43... b5 $16 44. Kf4 Kf6) 44. h4 {[%emt 0:02:30][%cal Bh2h4,Bh4h5][%mdl 32]} Ke6 {[%emt 0:00:17]} 45. h5 {[%emt 0:09:34]} Rc5 {[%emt 0:00:35]} 46. g4 {[%emt 0:00:05]} Rc1 {[%emt 0:01:03]} 47. Rg2 {[%emt 0:07:57]} Ke5 {[%emt 0:00:46]} 48. Rd2 {[%emt 0:01:08]} Ke6 {[%emt 0:00:35] Inhibits Rd7.} 49. Rd4 {[%emt 0:00:11]} b5 {[%emt 0:00:04]} 50. a4 {[%emt 0:03:27] Rb4 is the strong threat.} Rc3 $2 {[%emt 0:00:14][%mdl 8192] Loses the game.} (50... Rb1 $16) 51. Rb4 $18 {[%emt 0:00:43]} Rc5 {[%emt 0:00:26]} 52. axb5 {[%emt 0:01:38]} axb5 {[%emt 0:00:04]} 53. Re4+ {[%emt 0:00:06]} Kf6 {[%emt 0:01:22]} 54. b4 {[%emt 0:00:51]} Rc1 {[%emt 0:02:35] [#]} 55. Rf4+ $1 {[%emt 0:00:58]} Ke6 {[%emt 0:00:23]} 56. Rf5 {[%emt 0:00:44]} Rf1+ {[%emt 0:00:04]} 57. Ke4 {[%emt 0:00:06]} Rg1 {[%emt 0:00:04]} 58. Rxb5 {[%emt 0:00:19] Threatens to win with Rb6+.} Rxg4+ {[%emt 0:00:04]} 59. Kd3 {[%emt 0:00:14]} Rh4 $2 {[%emt 0:01:21] [#]} (59... Rg1 {is a better defense.} 60. Kd4 Rb1) 60. e4 $1 {[%emt 0:00:54] Strongly threatening Rd5. White is clearly winning.} Rh1 {[%emt 0:02:47]} 61. Rd5 {[%emt 0:01:03] Hoping for b5.} Rd1+ {[%emt 0:01:38]} 62. Kc4 {[%emt 0:00:06]} Re1 {[%emt 0:00:24]} 63. Kd4 {[%emt 0:00:26]} Rd1+ {[%emt 0:00:39]} 64. Kc5 {[%emt 0:00:05]} Rc1+ {[%emt 0:00:35]} 65. Kb6 {[%emt 0:00:26]} Rc4 {[%emt 0:00:12]} 66. b5 {[%emt 0:00:32]} Rxe4 {[%emt 0:00:02]} 67. Kc6 {[%emt 0:01:03] Weighted Error Value: White=0.09 (flawless) /Black=0.29 (precise)} 1-0

[Event "FIDE WSTC-50-65 2022"]
[Site "Acqui Terme"]
[Date "2022.06.26"]
[Round "6.2"]
[White "Godena, Michele"]
[Black "Short, Nigel D"]
[Result "1-0"]
[ECO "B15"]
[WhiteElo "2478"]
[BlackElo "2622"]
[Annotator "TA"]
[PlyCount "129"]
[EventDate "2022.06.20"]
[EventType "team-tourn"]
[EventCountry "ITA"]
[SourceTitle "playchess.com"]
[Source "ChessBase"]
[SourceQuality "1"]
[TimeControl "40/5400+30:1800+30"]

{[%evp 15,129,14,25,14,11,13,15,0,39,47,42,28,28,30,25,20,27,18,45,35,50,52,39,48,55,53,98,93,130,130,130,130,130,130,124,122,115,66,66,66,93,66,132,132,132,132,142,142,152,152,164,132,132,132,132,132,132,132,143,132,187,177,423,172,189,176,173,132,132,132,213,172,267,236,580,572,609,1085,1119,920,790,786,722,616,1712,1671,1866,1806,1866,1767,29967,29970,29966,1643,29970,29971,29971,29972,29972,29973,29973,29974,29974,29975,29975,29976,29977,29978,29978,29979,29979,29980,29980,29981,29981,29982]} 1. e4 {[%emt 0:01:00]} c6 {[%emt 0:01:00]} 2. d4 {[%emt 0:01:30]} d5 {[%emt 0:00:00]} 3. Nd2 {[%emt 0:00:30]} dxe4 {[%emt 0:00:00]} 4. Nxe4 {[%emt 0:00:30]} Nf6 {[%emt 0:00:30]} 5. Nxf6+ {[%emt 0:00:00]} exf6 {[%emt 0:00:00]} 6. c3 {[%emt 0:01:00]} Bd6 {[%emt 0:00:00]} 7. Bd3 {[%emt 0:00:30]} O-O {[%emt 0:03:30]} 8. Ne2 {[%emt 0:00:30]} Re8 {[%emt 0:00:00]} 9. O-O {[%emt 0:01:30] B15: Caro-Kann: 3 Nc3: 3...g6 and 3...dxe4 4 Nxe4 Nf6 5 Nxf6+ exf6.} Qc7 {[%emt 0:05:00]} 10. Ng3 {[%emt 0:02:30]} Nd7 {[%emt 0:17:30]} 11. Nf5 {[%emt 0:04:30][%cal Of5g7] The position is equal.} Nf8 {[%emt 0:01:30]} 12. Nxd6 {[%emt 0:03:30]} Qxd6 {[%emt 0:00:00]} 13. Qf3 {[%emt 0:05:30]} Ng6 {[%emt 0:02:00]} 14. Bd2 {[%emt 0:02:30]} Be6 {[%emt 0:00:30]} 15. Rfe1 {[%emt 0:13:30] [#]} a5 $146 {[%emt 0:00:30]} ({Predecessor:} 15... Rad8 16. Bf1 Qc7 17. Qg3 Qa5 18. a4 h5 19. h3 Qd5 20. b4 h4 21. Qe3 Re7 {1-0 (37) Mastrovasilis,D (2627)-Dreev,A (2623) Warsaw 2021}) 16. a4 {[%emt 0:13:30]} b6 {[%emt 0:04:30]} 17. Qg3 {[%emt 0:05:30]} Qxg3 {[%emt 0:04:30]} 18. hxg3 {[%emt 0:00:30]} Rad8 {[%emt 0:00:30]} 19. Be3 {[%emt 0:03:30]} Ne7 {[%emt 0:01:30]} 20. c4 {[%emt 0:09:30][%cal Bc3c4,Bc4c5][%mdl 32]} g5 {[%emt 0:07:30]} 21. d5 $1 {[%emt 0:12:23]} cxd5 {[%emt 0:00:30]} 22. Bxb6 {[%emt 0:00:25]} Ra8 {[%emt 0:00:30]} 23. c5 {[%emt 0:03:47]} Nc6 {[%emt 0:00:30]} 24. Bb5 {[%emt 0:00:32] A strong pair of Bishops.} Rec8 {[%emt 0:00:00]} 25. Bxc6 {[%emt 0:01:09]} Rxc6 {[%emt 0:00:00]} 26. b4 {[%emt 0:01:11]} (26. Red1 $16) 26... axb4 $14 {[%emt 0:00:30]} 27. Reb1 {[%emt 0:00:22]} Kf8 {[%emt 0:07:30]} 28. a5 {[%emt 0:01:00]} Ra6 {[%emt 0:00:30]} ({Black should play} 28... Bc8 $14) 29. Rxb4 $16 {[%emt 0:00:15]} Ke7 {[%emt 0:00:00]} 30. f3 {[%emt 0:03:22]} Kd7 {[%emt 0:01:00]} 31. Kf2 {[%emt 0:00:34]} Rc8 {[%emt 0:00:30]} 32. Rh1 {[%emt 0:01:02]} Rh8 {[%emt 0:00:30]} 33. Rh6 {[%emt 0:02:01]} f5 {[%emt 0:00:00]} 34. Ke3 {[%emt 0:01:27] White is more active.} Kc6 {[%emt 0:00:00]} 35. Rb1 {[%emt 0:00:33]} Raa8 {[%emt 0:00:30]} 36. Kd4 {[%emt 0:00:58]} g4 {[%emt 0:00:30]} 37. f4 {[%emt 0:01:30]} Ra6 {[%emt 0:01:30]} (37... Rhb8 $16 {is a better defense.}) 38. Re1 {[%emt 0:00:57]} Raa8 $2 {[%emt 0:00:30]} (38... Re8 39. Rxh7 Raa8) 39. Kc3 {[%emt 0:00:00]} (39. Rexe6+ $142 fxe6 40. Rxe6+ Kb7 41. Kxd5) 39... Kb5 {[%emt 0:00:00]} 40. Rb1+ $1 {[%emt 0:00:00]} Kc6 {[%emt 0:00:00]} 41. Ra1 {[%emt 0:23:56]} Kb5 {[%emt 0:08:30]} 42. Kd4 {[%emt 0:00:30]} Ra6 {[%emt 0:00:30]} (42... Rhc8 $16 43. Rhh1 (43. Rxh7 Ra6 $18) 43... Ra6 44. Rxh7 Kc6) 43. Ke5 $1 $18 {[%emt 0:04:23]} Kc6 {[%emt 0:00:30] [#]} (43... Rc8 {keeps fighting.} 44. Rxh7 Kc6) 44. Rd1 $1 {[%emt 0:02:07] Threatens to win with Rxd5.} Kb7 $2 {[%emt 0:03:30]} (44... Kb5 45. Rd2 Rha8) 45. Rxd5 {[%emt 0:01:09]} Bxd5 {[%emt 0:00:30]} 46. Kxd5 {[%emt 0:00:02][%mdl 4096] Endgame KRR-KRB} Raa8 {[%emt 0:00:30]} 47. c6+ {[%emt 0:00:35]} Ka6 {[%emt 0:00:30]} 48. c7 {[%emt 0:00:44]} Kb7 {[%emt 0:09:30]} 49. Rd6 {[%emt 0:00:30]} h5 {[%emt 0:01:30]} 50. Rd8 {[%emt 0:01:13] Kc5 is the strong threat.} Rc8 {[%emt 0:00:30]} 51. Kd6 {[%emt 0:00:52]} f6 {[%emt 0:00:30]} 52. Ke6 {[%emt 0:02:04]} Rf8 {[%emt 0:01:30]} 53. Kxf5 {[%emt 0:00:52]} Re8 {[%emt 0:00:30]} 54. Kxf6 {[%emt 0:00:58]} (54. Rxe8 $142 Rxe8 55. Kxf6 h4 56. gxh4 g3 57. h5 Re1 58. a6+ Kc8 59. a7) 54... Re2 {[%emt 0:00:00]} 55. a6+ {[%emt 0:02:22] White mates.} Kxa6 {[%emt 0:00:00]} 56. Rxc8 {[%emt 0:00:00]} Kxb6 {[%emt 0:00:30] KR-KR} 57. Rh8 {[%emt 0:01:11]} Kxc7 {[%emt 0:00:00]} 58. Rxh5 {[%emt 0:00:08]} Rxg2 {[%emt 0:00:00]} 59. f5 {[%emt 0:00:44]} Rxg3 {[%emt 0:00:00] [#]} 60. Kg7 $1 {[%emt 0:00:34]} Kd7 {[%emt 0:14:00]} 61. f6 {[%emt 0:00:07]} Rf3 {[%emt 0:00:30]} 62. f7 {[%emt 0:00:00]} Ke6 {[%emt 0:00:00]} 63. f8=Q {[%emt 0:00:18]} Rxf8 {[%emt 0:00:00]} 64. Kxf8 {[%emt 0:00:30]} Kf6 {[%emt 0:00:30]} 65. Ra5 {[%emt 0:00:30] Weighted Error Value: White=0.09 (flawless) /Black=0.44} 1-0

[Event "FIDE WSTC-50-65 2022"]
[Site "Acqui Terme"]
[Date "2022.06.26"]
[Round "6.3"]
[White "Hebden, Mark L"]
[Black "Garcia Palermo, Carlos Horacio"]
[Result "1-0"]
[ECO "E14"]
[WhiteElo "2452"]
[BlackElo "2415"]
[Annotator "TA"]
[PlyCount "91"]
[EventDate "2022.06.20"]
[EventType "team-tourn"]
[EventCountry "ITA"]
[SourceTitle "playchess.com"]
[Source "ChessBase"]
[SourceQuality "1"]
[TimeControl "40/5400+30:1800+30"]

{[%evp 17,91,87,90,50,116,89,131,129,113,109,108,98,108,85,78,0,0,0,89,90,90,86,83,86,88,61,61,31,197,206,206,203,187,195,195,199,174,116,425,397,394,403,395,310,300,287,274,6,21,2,77,85,85,78,83,89,282,301,304,270,357,347,437,433,993,988,980,969,921,489,29957,5010,6119,5173,4818,2025]} 1. d4 {[%emt 0:01:00]} Nf6 {[%emt 0:02:00]} 2. Nf3 {[%emt 0:00:30]} e6 {[%emt 0:00:30]} 3. e3 {[%emt 0:03:30]} b6 {[%emt 0:02:30]} 4. Bd3 {[%emt 0:00:30]} Bb7 {[%emt 0:00:30]} 5. O-O {[%emt 0:00:30]} c5 {[%emt 0:04:30]} 6. c4 {[%emt 0:02:30]} cxd4 {[%emt 0:05:30]} 7. exd4 {[%emt 0:00:30]} Be7 {[%emt 0:03:30]} 8. Nc3 {[%emt 0:01:30]} d6 {[%emt 0:04:30]} 9. d5 {[%emt 0:06:30]} e5 {[%emt 0:03:30]} 10. Nh4 {[%emt 0:05:30] E14: Queen's Indian: Classical Variation (4 e3).} g6 {[%emt 0:02:30] Prevents Nf5.} ({Black should try} 10... Nxd5 $1 $14 11. Nxd5 Bxh4) 11. Bh6 $16 {[%emt 0:09:30]} Nbd7 {[%emt 0:03:30]} 12. f4 $1 {[%emt 0:03:30] White is clearly better.} a6 {[%emt 0:14:30]} 13. Qe2 {[%emt 0:05:30]} Qc7 {[%emt 0:14:30]} 14. fxe5 {[%emt 0:07:30]} dxe5 {[%emt 0:00:30] [#]} 15. Rae1 $146 {[%emt 0:06:30] White is much more active. The black rooks are badly placed.} ({Predecessor:} 15. Ne4 Nxe4 16. Bxe4 Qc5+ 17. Be3 Qd6 18. Nf3 f5 19. Bc2 O-O 20. Rae1 Rac8 21. Kh1 {0-1 (59) Dobrovoljc,V (2303)-Morozov,N (2458) Rymanow Zdroj 2017}) 15... O-O-O {[%emt 0:03:30]} 16. Nf3 {[%emt 0:07:30]} (16. Bg5 $16) 16... Ng4 $1 $11 {[%emt 0:02:30]} 17. Bg5 {[%emt 0:05:30]} Qc5+ {[%emt 0:20:20]} (17... f6 $1 $11 {remains equal.} 18. Bh4 Ne3) 18. Kh1 $16 {[%emt 0:00:30]} f5 {[%emt 0:00:14] Against Ne4} 19. h3 {[%emt 0:01:30]} h5 {[%emt 0:00:07]} 20. Na4 $36 {[%emt 0:01:30][%mdl 2048] White is on the roll.} Qd6 {[%emt 0:00:21]} 21. c5 {[%emt 0:00:00]} (21. Bxe7 $6 Qxe7 22. c5 (22. hxg4 $2 hxg4+ 23. Kg1 gxf3 $19) 22... Nxc5 23. Nxc5 (23. Nxb6+ $2 Kb8 $19) 23... bxc5 $14) 21... Nxc5 {[%emt 0:01:37]} 22. Nxc5 {[%emt 0:02:00]} Bxg5 $2 {[%emt 0:01:35]} (22... bxc5 $14 23. Bxe7 Qxe7) 23. Nxb7 $18 {[%emt 0:01:30] Dancing on a razor blade.} (23. Nxg5 e4 24. g3 bxc5 $17) (23. Nxa6 Bxd5 $1 24. Nxg5 (24. Qc2+ Kb7 $17) 24... e4 25. Qc2+ Kb7 26. Qc7+ Qxc7 27. Nxc7 Kxc7 28. Bxe4 fxe4 $17) 23... Kxb7 {[%emt 0:00:12]} 24. Bxa6+ {[%emt 0:07:41]} ({Don't go for} 24. hxg4 $2 hxg4+ 25. Kg1 (25. Nh2 $2 g3 $19) 25... gxf3 26. Bxa6+ Ka7 27. gxf3 e4 $19) 24... Ka7 {[%emt 0:02:36][%cal Oe5e4] Hoping for ...e4!} 25. Nxg5 {[%emt 0:00:32] Black must now prevent Nf7.} e4 {[%emt 0:00:14][%csl Gg4][%cal Rd6h2]} 26. g3 $1 {[%emt 0:00:17]} ({And not} 26. hxg4 hxg4+ 27. Kg1 Qh2+ 28. Kf2 Qf4+ 29. Kg1 Qh2+ 30. Kf2 Qf4+ 31. Kg1 Qh2+ $11) 26... Qxg3 {[%emt 0:01:01][%cal Od8d5] [#]} 27. Bc4 {[%emt 0:04:27]} e3 {[%emt 0:05:03][%mdl 8192] Against Qd2} 28. Qg2 {[%emt 0:03:07]} Qh4 {[%emt 0:00:29]} 29. Nf3 {[%emt 0:02:32]} Nf2+ {[%emt 0:00:09] [#]} 30. Rxf2 $1 {[%emt 0:00:12]} exf2 {[%emt 0:00:08]} 31. Rc1 {[%emt 0:00:04]} Qf4 {[%emt 0:00:22]} 32. Rc2 {[%emt 0:00:02]} (32. Rc3 $18) 32... Rhe8 {[%emt 0:01:34] And now ...Re1+ would win.} (32... Rc8 $5 33. b3 b5 $11) 33. Qxf2 {[%emt 0:00:30] aiming for Rc3.} Re3 {[%emt 0:00:14] [#]} (33... Rc8 $1 $11 {keeps the balance.} 34. Bd3 Rxc2 35. Bxc2 g5) 34. Ng1 $1 $16 {[%emt 0:01:12]} Qe4+ {[%emt 0:01:09]} 35. Qg2 {[%emt 0:00:34]} Rc8 {[%emt 0:00:42]} 36. Qxe4 {[%emt 0:00:52]} fxe4 {[%emt 0:00:49]} (36... Rxe4 $16 37. Bd3 Rxc2 38. Bxc2 Rd4) 37. d6 $18 {[%emt 0:00:18]} Rd8 {[%emt 0:00:56]} 38. Rd2 {[%emt 0:00:10]} g5 {[%emt 0:00:14]} 39. Kg2 {[%emt 0:00:22]} h4 {[%emt 0:00:31]} 40. Ne2 {[%emt 0:00:00] Threatens to win with Nd4.} Rf3 {[%emt 0:00:00]} (40... Kb7 $142 41. d7 Rf3) 41. Nd4 {[%emt 0:04:08] Strongly threatening Nc6+.} Rg3+ {[%emt 0:04:53]} 42. Kh2 {[%emt 0:00:00] Threatening mate with Nc6+.} e3 {[%emt 0:00:30]} 43. Re2 {[%emt 0:03:00] White wants to mate with Nc6+.} b5 {[%emt 0:07:30]} (43... Kb7 $18 44. Nf5 g4 45. Nxg3 hxg3+ 46. Kxg3 gxh3 47. Rxe3 Rxd6 48. Kxh3 Rd4) 44. Nc6+ {[%emt 0:01:30]} Kb6 {[%emt 0:00:00]} 45. Nxd8 {[%emt 0:00:30][%cal Od6d7] d7! would kill now.} bxc4 {[%emt 0:00:00]} 46. Nf7 {[%emt 0:00:00] Weighted Error Value: White=0.29 (precise) /Black=0.69} 1-0